bitfinex/quotes_ETHUSD_20250605
["timestamp","ask_amount","ask_price","bid_price","bid_amount"]
[1749105879158,0.1632389,2601.8,2601.7,2.34066667]
[1749105879360,1.06514527,2601.8,2601.7,0.54730534]
[1749105879560,1.4881389,2601.2,2601.1,0.02]
[1749105879766,1.4881389,2601.2,2601.1,1.694]
[1749105879971,0.1632389,2601.2,2601.1,1.694]
[1749105880192,0.1632389,2601.7,2601.1,1.694]
[1749105880390,3.51906368,2601.3,2601.2,1.829]
[1749105880592,4.01260005,2601.3,2601.2,1.829]
[1749105880790,3.35582478,2600.9,2600.1,0.6064955]
[1749105881020,0.1632389,2600.7,2600.2,1.829]
[1749105881228,0.1632389,2600.3,2600.2,1.829]
[1749105881542,0.1632389,2600.6,2599.6,30.0]
[1749105881839,0.1632389,2601.0,2600.2,16.0]
[1749105882014,0.1632389,2601.2,2600.1,22.214252]
[1749105882318,0.1632389,2600.9,2599.5,23.02865789]
[1749105882654,0.1632389,2600.6,2599.4,26.429592]
[1749105882802,0.1632389,2600.2,2599.2,7.02865789]
[1749105882999,0.1632389,2600.6,2599.2,9.034339]
[1749105883198,7.02865789,2600.1,2599.2,10.082904]
[1749105883402,0.1632389,2600.2,2599.1,0.02]
[1749105883625,7.02865789,2600.0,2599.3,0.6065]
[1749105883941,0.1632389,2600.0,2599.3,0.6065]
[1749105884123,7.19189679,2599.8,2599.3,0.6065]
[1749105884281,7.02865789,2599.5,2599.1,0.02]
[1749105885019,0.1632389,2599.6,2599.1,0.02]
[1749105885230,1.4327,2600.1,2599.3,0.6065]
[1749105885231,0.1632389,2599.8,2599.3,0.6065]
[1749105885430,7.19189679,2599.8,2599.3,0.6065]
[1749105885635,8.46135789,2600.1,2599.4,0.35372925]
[1749105885930,7.02865789,2599.8,2599.5,8.63967095]
[1749105886128,7.02865789,2599.8,2599.6,17.83]
[1749105886327,7.19189679,2599.7,2599.4,16.0]
[1749105886718,7.19189679,2599.7,2599.5,1.83]
[1749105886914,8.05008647,2599.7,2599.5,1.83]
[1749105887121,0.1632389,2599.3,2599.1,0.02]
[1749105887321,7.02865789,2599.2,2599.1,0.02]
[1749105887495,0.1632389,2599.3,2599.1,0.02]
[1749105887704,0.1632389,2599.3,2599.2,1.83]
[1749105888347,4.01042852,2599.3,2599.2,1.83]
[1749105888551,0.1632389,2599.3,2599.2,1.83]
[1749105888750,0.1632389,2599.3,2599.2,2.18333642]
[1749105888948,1.39,2599.9,2599.2,2.18333642]
[1749105888949,7.19189679,2599.5,2599.2,0.35333642]
[1749105889253,7.19189679,2599.5,2599.3,8.64133642]
[1749105889452,7.19189679,2599.5,2599.4,16.0]
[1749105889626,0.1632389,2599.2,2599.1,0.02]
[1749105889825,7.02865789,2599.5,2599.2,16.0]
[1749105889826,0.1632389,2599.5,2599.2,16.0]
[1749105890137,7.19189679,2599.5,2599.1,10.7485]
[1749105890322,7.19189679,2599.5,2599.2,0.3515543]
[1749105890649,7.19189679,2599.5,2599.3,2.18255462]
[1749105890814,0.1632389,2599.5,2599.4,0.35155496]
[1749105891014,7.19189679,2599.5,2599.4,2.18254581]
[1749105891245,7.19189679,2599.5,2599.4,2.18255131]
[1749105891461,7.19189679,2599.5,2599.4,2.18199812]
[1749105891646,7.19189679,2599.5,2599.4,1.831]
[1749105891852,7.19189679,2599.5,2599.4,2.18200528]
[1749105892021,7.19189679,2599.5,2599.4,2.1819985]
[1749105892223,1.39,2599.9,2599.1,8.311]
[1749105892224,0.1632389,2599.3,2599.1,8.311]
[1749105892541,0.1632389,2599.8,2599.2,16.0]
[1749105892737,7.02865789,2599.7,2599.4,16.0]
[1749105892952,0.1632389,2599.8,2599.4,16.6065]
[1749105893356,7.19189679,2599.8,2599.4,0.6065]
[1749105893553,7.02865789,2599.5,2599.4,0.6065]
[1749105893761,7.02865789,2599.5,2599.4,9.1695]
[1749105894330,0.1632389,2600.1,2599.4,9.1695]
[1749105894528,7.19189679,2600.1,2599.5,0.3507747]
[1749105894733,7.19189679,2600.1,2599.7,16.0]
[1749105894928,7.19189679,2600.1,2599.8,0.3507747]
[1749105895153,7.19189679,2600.1,2599.9,0.35059832]
[1749105895404,1.412,2600.9,2599.7,16.0]
[1749105895563,7.19189679,2600.1,2599.8,0.95708147]
[1749105895900,7.19189679,2600.1,2600.0,16.0]
[1749105896066,7.02865789,2600.1,2600.0,16.0]
[1749105896263,0.1632389,2601.2,2600.3,0.55]
[1749105896463,7.19189679,2600.8,2600.5,16.0]
[1749105896689,0.1632389,2601.0,2600.5,16.0]
[1749105896895,0.1632389,2600.9,2600.5,16.0]
[1749105897796,0.1632389,2600.9,2600.7,0.6065]
[1749105897996,0.1632389,2600.9,2600.8,0.35041312]
[1749105898363,0.1632389,2600.9,2600.8,0.35094059]
[1749105898561,0.1632389,2600.9,2600.8,0.35116047]
[1749105898801,0.1632389,2600.9,2600.8,10.208]
[1749105899007,0.1632389,2600.9,2600.6,6.752]
[1749105899008,0.1632389,2600.6,2600.0,0.6065]
[1749105899213,0.1632389,2600.6,2600.2,16.0]
[1749105899386,0.1632389,2600.6,2600.3,0.35123035]
[1749105899570,0.1632389,2600.6,2600.2,16.0]
[1749105900324,0.1632389,2600.9,2600.3,4.16075]
[1749105900530,0.1632389,2600.9,2600.3,0.55]
[1749105900730,0.1632389,2600.6,2600.2,0.55]
[1749105901318,0.1632389,2601.1,2600.6,0.55]
[1749105901608,0.1632389,2601.0,2600.7,1.916]
[1749105901975,0.1632389,2601.2,2600.7,1.916]
[1749105902171,0.1632389,2601.7,2601.0,0.55]
[1749105902376,0.1632389,2601.5,2600.9,0.6614]
[1749105902915,0.1632389,2601.1,2601.0,32.96]
[1749105903313,0.1632389,2601.1,2601.0,24.291]
[1749105903519,0.1632389,2601.1,2601.0,32.961]
[1749105904015,0.1632389,2601.5,2601.0,16.961]
[1749105904198,0.1632389,2601.4,2601.1,0.6614]
[1749105904518,0.1632389,2601.4,2601.3,16.0]
[1749105904694,0.1632389,2601.4,2601.1,16.0]
[1749105904888,0.1632389,2601.4,2601.3,16.0]
[1749105905631,0.1632389,2601.4,2601.1,16.0]
[1749105905982,0.1632389,2601.2,2601.1,16.0]
[1749105906180,0.1632389,2601.2,2601.1,24.678]
[1749105906386,0.1632389,2601.2,2601.1,16.0]
[1749105906693,0.1632389,2601.5,2601.1,10.207]
[1749105906888,0.1632389,2601.7,2601.1,10.207]
[1749105907123,0.1632389,2601.3,2601.1,8.291]
[1749105907413,0.1632389,2601.3,2601.2,10.206]
[1749105908000,0.1632389,2601.3,2601.2,16.965]
[1749105908312,0.1632389,2601.3,2601.2,8.29]
[1749105908513,0.1632389,2601.3,2601.2,16.962]
[1749105908716,0.1632389,2601.3,2601.2,8.29]
[1749105908937,0.1632389,2601.3,2600.1,16.55]
[1749105909218,0.1632389,2601.3,2599.0,3.88426994]
[1749105909219,0.1632389,2601.1,2600.4,3.839101]
[1749105909377,0.1632389,2601.1,2600.6,16.0]
[1749105909578,0.1632389,2601.1,2600.4,4.222947]
[1749105909790,0.1632389,2601.1,2600.3,16.0]
[1749105910020,0.1632389,2601.1,2600.6,16.0]
[1749105910252,0.1632389,2601.1,2600.3,8.021513]
[1749105910581,0.1632389,2601.1,2600.4,8.664]
[1749105911307,0.1632389,2601.1,2600.5,6.482825]
[1749105911620,0.1632389,2601.1,2600.7,10.0]
[1749105911826,0.1418389,2601.1,2600.4,1.916]
[1749105912022,0.1418389,2601.1,2600.8,6.746]
[1749105912623,0.1418389,2601.1,2600.3,0.55]
[1749105912793,0.1418389,2601.1,2600.4,14.565888]
[1749105912993,0.1418389,2601.1,2600.4,8.658]
[1749105913595,0.1418389,2601.1,2600.5,1.916]
[1749105913795,0.1418389,2601.1,2600.7,16.0]
[1749105914908,0.1418389,2601.1,2600.9,16.0]
[1749105915849,7.02865789,2601.5,2600.9,16.0]
[1749105915850,0.1418389,2601.5,2600.9,16.0]
[1749105916142,0.1418389,2601.5,2601.1,16.0]
[1749105916319,0.1418389,2601.5,2601.2,16.0]
[1749105916515,0.1418389,2601.5,2601.1,16.55]
[1749105916742,0.1418389,2601.8,2601.1,0.55]
[1749105917047,0.1418389,2601.7,2601.5,16.0]
[1749105917219,0.1418389,2601.7,2601.6,8.646]
[1749105918017,0.1418389,2601.7,2601.6,1.916]
[1749105918239,0.1418389,2601.7,2601.6,8.643]
[1749105920109,0.1418389,2601.7,2601.6,1.915]
[1749105920307,0.1418389,2601.7,2601.6,8.634]
[1749105920852,0.1618389,2601.9,2601.6,24.634]
[1749105921672,0.02,2601.9,2601.2,16.55]
[1749105921871,0.02,2601.9,2601.4,16.0]
[1749105922023,0.02,2601.9,2601.3,10.0]
[1749105922364,0.02,2601.9,2601.0,16.0]
[1749105922558,0.1418389,2601.8,2601.5,16.0]
[1749105922763,0.1418389,2601.8,2600.8,19.16361188]
[1749105922764,0.1418389,2601.8,2600.9,16.55]
[1749105922920,0.1418389,2601.8,2601.7,16.0]
[1749105923120,0.1618389,2601.9,2601.7,17.915]
[1749105923759,0.1618389,2601.9,2601.7,1.915]
[1749105924063,0.1618389,2601.9,2601.8,22.706]
[1749105925476,0.02,2601.9,2601.8,26.83775]
[1749105925774,0.1418389,2602.3,2601.1,2.649137]
[1749105925948,0.1418389,2602.3,2601.2,25.163]
[1749105926145,0.1418389,2602.3,2601.4,5.525413]
[1749105926352,0.1418389,2602.3,2601.3,16.55]
[1749105926553,0.1418389,2602.3,2601.6,16.0]
[1749105926758,0.1418389,2602.3,2601.4,6.871977]
[1749105927286,0.1418389,2602.3,2601.6,16.0]
[1749105927482,0.1418389,2602.3,2601.4,6.863227]
[1749105927784,0.1418389,2602.3,2601.3,16.55]
[1749105927955,0.1418389,2602.1,2601.5,16.0]
[1749105928159,1.5127389,2602.1,2601.5,16.0]
[1749105928487,0.1418389,2601.7,2601.6,8.569]
[1749105930313,0.1418389,2601.7,2601.2,0.0728]
[1749105930618,0.1418389,2601.7,2601.3,10.167]
[1749105930777,0.1418389,2601.7,2600.4,7.02865789]
[1749105930956,0.1418389,2601.7,2600.9,0.0728]
[1749105931693,0.1418389,2601.3,2601.0,10.167]
[1749105931894,0.1418389,2601.3,2601.0,8.287]
[1749105932062,0.1418389,2601.3,2601.1,24.556]
[1749105933975,0.1418389,2601.3,2601.2,20.6197]
[1749105934259,0.1418389,2601.7,2601.3,16.0]
[1749105934459,1.5452389,2601.9,2601.2,16.0728]
[1749105934663,0.1418389,2601.6,2601.2,16.0728]
[1749105934860,0.1418389,2601.9,2601.2,16.0]
[1749105935096,0.1418389,2602.1,2601.7,16.0]
[1749105935408,0.1418389,2602.1,2601.8,8.566]
[1749105935555,0.1418389,2602.1,2601.9,8.564]
[1749105935761,0.1418389,2602.1,2602.0,24.564]
[1749105936694,0.1418389,2602.3,2602.1,16.0]
[1749105936896,0.1418389,2602.3,2602.0,8.564]
[1749105937619,0.1418389,2602.2,2602.0,8.564]
[1749105939505,0.1418389,2602.4,2601.7,0.0728]
[1749105939705,0.1418389,2602.2,2601.7,0.0728]
[1749105939890,0.1418389,2602.2,2601.9,16.0]
[1749105940495,0.1418389,2602.2,2601.4,6.979354]
[1749105940713,0.1418389,2602.2,2601.7,16.0]
[1749105941716,0.1418389,2602.2,2601.6,16.0]
[1749105942315,0.1418389,2602.2,2601.8,16.0728]
[1749105942488,0.1418389,2602.2,2601.8,0.0728]
[1749105942693,0.1418389,2602.2,2601.9,10.0]
[1749105942894,0.1418389,2602.2,2601.8,0.0728]
[1749105944203,0.1418389,2602.4,2601.8,0.0728]
[1749105945218,0.1418389,2602.4,2602.0,16.0]
[1749105945396,0.1418389,2602.4,2602.2,16.0]
[1749105945593,0.1418389,2602.4,2602.3,24.286]
[1749105946317,0.1418389,2602.4,2602.3,32.812]
[1749105946712,0.1418389,2602.4,2602.3,24.286]
[1749105946909,0.1418389,2602.4,2602.3,32.81]
[1749105948813,0.1418389,2602.4,2602.3,32.802]
[1749105949028,0.1418389,2602.4,2602.3,26.166]
[1749105949324,0.1418389,2602.4,2602.3,32.801]
[1749105950529,0.1418389,2602.4,2602.3,26.166]
[1749105950738,0.1418389,2602.4,2602.3,32.795]
[1749105952156,0.1418389,2602.4,2602.3,24.286]
[1749105952426,0.1418389,2602.4,2602.3,16.0]
[1749105952642,0.1418389,2601.7,2601.2,0.0728]
[1749105952842,1.4245,2602.3,2601.3,18.605034]
[1749105953018,1.4245,2602.3,2601.4,1.88]
[1749105953538,1.4245,2602.3,2601.3,18.908034]
[1749105953745,1.4245,2602.3,2601.3,8.442755]
[1749105954050,1.4245,2602.3,2601.4,16.784]
[1749105954254,1.4211,2602.1,2601.0,10.0]
[1749105954438,1.4211,2601.9,2601.0,2.59191]
[1749105954638,1.4211,2601.9,2601.1,16.783]
[1749105954957,1.4211,2601.9,2601.1,1.88]
[1749105955255,1.4211,2601.9,2601.2,1.88]
[1749105955478,1.4211,2601.9,2601.3,17.88]
[1749105956023,1.4211,2601.9,2601.4,6.614]
[1749105956957,1.4211,2601.9,2601.3,16.0]
[1749105957260,1.4211,2601.9,2601.5,8.438]
[1749105957419,1.4211,2601.9,2601.6,16.0]
[1749105958360,1.4211,2601.9,2601.8,16.0]
[1749105960756,1.3362,2602.1,2601.8,16.0]
[1749105961066,7.02865789,2602.1,2601.3,16.0]
[1749105961361,1.3362,2602.0,2601.5,16.0]
[1749105961928,1.3362,2602.0,2601.7,16.0]
[1749105962130,1.3772,2601.8,2601.7,16.0]
[1749105962538,1.3772,2601.8,2601.2,8.285]
[1749105962739,1.3772,2601.8,2601.3,16.0]
[1749105962945,8.40585789,2601.8,2601.5,16.0]
[1749105963139,1.3772,2601.7,2601.6,10.115]
[1749105963425,2.34513437,2601.7,2601.6,24.286]
[1749105963644,2.34513437,2601.7,2601.6,26.115]
[1749105963843,2.34513437,2601.7,2601.6,24.286]
[1749105964057,2.34513437,2601.7,2601.6,26.115]
[1749105964383,0.92423437,2601.7,2601.6,10.115]
[1749105964848,2.38383437,2601.7,2601.6,10.115]
[1749105965387,1.4596,2601.7,2601.6,26.115]
[1749105965865,1.4098,2602.0,2601.7,16.0]
[1749105968446,1.4098,2602.0,2601.9,16.0]
[1749105968968,1.4098,2602.0,2601.9,24.408]
[1749105969673,2.25364579,2602.0,2601.6,8.286]
[1749105969873,2.25364579,2602.0,2601.9,1.829]
[1749105971280,1.4098,2602.0,2601.9,1.829]
[1749105972215,1.4098,2602.0,2601.7,16.0]
[1749105972424,1.4098,2602.0,2601.8,8.402]
[1749105974540,1.4098,2602.0,2601.7,16.0]
[1749105974759,7.02865789,2601.9,2601.7,16.0]
[1749105974976,2.21054579,2601.8,2601.7,16.0]
[1749105975111,2.21054579,2601.8,2600.1,0.02]
[1749105975308,1.3667,2601.3,2600.3,11.407037]
[1749105975513,1.3667,2601.3,2600.6,16.0]
[1749105975714,1.3667,2601.3,2600.3,16.38677582]
[1749105975941,1.3667,2601.3,2600.4,11.095676]
[1749105976162,1.3667,2601.3,2600.6,10.0]
[1749105976310,1.3667,2601.3,2600.7,6.562]
[1749105976506,1.3667,2601.3,2600.8,17.829]
[1749105976913,1.3667,2601.3,2600.3,16.38677582]
[1749105977232,1.3667,2601.3,2600.5,16.0]
[1749105977433,1.3445,2601.7,2600.7,26.448646]
[1749105977748,1.3445,2601.7,2601.0,16.0]
[1749105977992,1.3445,2601.7,2601.2,16.0]
[1749105978927,1.3445,2601.7,2601.1,8.388]
[1749105979528,7.02865789,2602.2,2601.1,8.388]
[1749105979857,1.3449,2602.1,2601.2,11.522696]
[1749105980061,1.3449,2602.1,2601.3,10.0]
[1749105981071,1.3449,2602.1,2601.4,16.0]
[1749105981274,1.3449,2602.1,2601.6,16.0]
[1749105981433,1.3449,2602.1,2601.7,1.829]
[1749105983654,1.4514,2602.4,2601.7,1.829]
[1749105984544,1.4514,2602.4,2601.8,1.829]
[1749105984747,1.4514,2602.4,2601.9,6.54]
[1749105987138,1.4514,2602.4,2602.0,16.0]
[1749105987552,1.4294,2602.7,2602.0,16.0]
[1749105988871,1.4037,2602.9,2602.0,42.372529]
[1749105989076,1.4037,2602.9,2602.0,16.0]
[1749105990737,1.4037,2602.9,2601.9,6.54]
[1749105990976,1.4037,2602.9,2602.1,16.0]
[1749105991182,1.4037,2602.9,2602.1,12.831805]
[1749105991676,1.4037,2602.9,2602.1,10.32046]
[1749105992648,0.02,2602.9,2602.1,10.32046]
[1749105992848,1.3239,2602.8,2601.8,0.55]
[1749105993105,1.3239,2602.8,2602.0,16.0]
[1749105993263,1.3239,2602.8,2602.2,16.0]
[1749105993465,1.3239,2602.8,2602.4,16.0]
[1749105993672,1.3239,2602.8,2602.6,16.0]
[1749105994117,1.3239,2602.8,2601.8,16.55]
[1749105994288,1.3239,2602.8,2602.2,16.0]
[1749105994510,1.3239,2602.8,2602.4,16.0]
[1749105994801,1.3239,2602.8,2602.5,1.782]
[1749105994967,1.3239,2602.8,2602.6,8.297]
[1749105995161,1.3239,2602.8,2602.7,17.782]
[1749105995359,0.02,2602.9,2602.7,17.782]
[1749105995569,0.02,2602.9,2602.8,24.285]
[1749105995968,0.02,2602.9,2602.8,32.58]
[1749105996171,0.02,2602.9,2602.8,24.285]
[1749105996583,0.02,2602.9,2602.8,32.578]
[1749105998205,0.02,2602.9,2602.8,32.573]
[1749105998602,0.02,2602.9,2602.8,32.572]
[1749105999891,0.02,2602.9,2602.8,26.067]
[1749106000094,0.02,2602.9,2602.8,32.567]
[1749106003724,0.02,2602.9,2602.8,16.566]
[1749106005449,0.02,2602.9,2602.8,16.55]
[1749106005668,3.39116605,2602.9,2602.8,16.55]
[1749106005951,3.39116605,2602.9,2602.8,8.284]
[1749106006451,0.02,2602.9,2602.8,9.1124]
[1749106006627,0.02,2602.9,2602.8,16.566]
[1749106007015,0.02,2602.9,2602.8,24.284]
[1749106007210,0.02,2602.9,2602.8,32.565]
[1749106007630,0.02,2602.9,2602.8,24.284]
[1749106007829,0.02,2602.9,2602.8,32.564]
[1749106008688,3.39116605,2602.9,2602.8,10.066]
[1749106008983,1.4497,2602.8,2602.1,0.4495006]
[1749106009190,1.4497,2602.8,2602.3,16.0]
[1749106009191,3.37116605,2602.5,2602.3,16.0]
[1749106009690,3.37116605,2602.5,2602.4,6.495]
[1749106009981,1.4497,2602.8,2602.4,1.782]
[1749106009982,3.37116605,2602.7,2602.4,1.782]
[1749106010185,1.4497,2602.8,2602.4,1.782]
[1749106010981,4.82086605,2602.8,2602.4,1.782]
[1749106011136,1.4497,2602.8,2602.5,6.497]
[1749106013563,1.4497,2602.8,2602.1,16.0]
[1749106013758,1.4497,2602.8,2602.6,8.27]
[1749106013992,1.4497,2602.8,2602.7,1.782]
[1749106014493,1.4497,2602.8,2602.7,8.267]
[1749106014673,1.4497,2602.8,2602.7,16.0]
[1749106014880,1.4497,2602.8,2602.7,17.782]
[1749106015051,1.4497,2602.8,2602.7,24.268]
[1749106015396,2.29814131,2602.8,2602.7,26.066]
[1749106015609,2.29814131,2602.8,2602.7,32.551]
[1749106018417,2.29814131,2602.8,2602.7,26.066]
[1749106018621,0.84844131,2602.8,2602.7,26.036]
[1749106018818,2.28294131,2602.8,2602.7,32.513]
[1749106019016,2.28294131,2602.8,2602.7,26.036]
[1749106019218,2.28294131,2602.8,2602.7,32.512]
[1749106020831,2.28294131,2602.8,2602.7,26.036]
[1749106021127,2.28294131,2602.8,2602.7,32.507]
[1749106021331,1.4345,2602.8,2602.7,32.507]
[1749106021532,1.4345,2602.8,2602.7,32.477]
[1749106022647,0.02,2602.9,2602.7,32.477]
[1749106025013,0.02,2602.9,2602.8,16.0]
[1749106026539,0.02,2602.9,2602.8,24.214]
[1749106026953,0.02,2602.9,2602.8,16.55904187]
[1749106027441,0.02,2602.9,2602.8,8.214]
[1749106028169,1.3431,2602.8,2602.7,8.284]
[1749106028345,1.3431,2602.8,2602.7,16.494]
[1749106028508,1.3431,2602.8,2602.7,10.036]
[1749106028857,1.3431,2602.8,2602.7,16.495]
[1749106029018,2.25122845,2602.8,2602.7,16.495]
[1749106029903,1.3431,2602.8,2602.7,16.495]
[1749106032946,1.3431,2602.8,2602.7,10.036]
[1749106033144,1.3431,2602.8,2602.7,16.487]
[1749106034482,1.3431,2602.8,2602.7,10.036]
[1749106034672,1.3431,2602.8,2602.7,16.484]
[1749106034891,2.18088131,2602.8,2602.7,8.284]
[1749106035033,2.18088131,2602.8,2602.7,16.483]
[1749106035644,2.15188131,2602.8,2602.7,10.036]
[1749106035864,2.15188131,2602.8,2602.7,8.284]
[1749106036066,2.70188131,2602.8,2602.7,8.284]
[1749106036246,2.70188131,2602.8,2602.7,10.036]
[1749106037273,2.70188131,2602.8,2602.7,8.284]
[1749106037476,2.70188131,2602.8,2602.7,10.036]
[1749106040754,2.15188131,2602.8,2602.7,10.036]
[1749106040963,1.3141,2602.8,2602.7,10.036]
[1749106041237,4.68753976,2602.8,2602.7,10.036]
[1749106041716,6.58753976,2602.8,2602.7,10.036]
[1749106042019,3.37343976,2602.8,2602.7,10.036]
[1749106043270,0.02,2602.9,2602.7,10.036]
[1749106044003,0.02,2602.9,2602.8,10.038]
[1749106045062,0.02,2602.9,2602.8,16.472]
[1749106045977,0.02,2602.9,2602.8,32.472]
[1749106047227,0.02,2602.9,2602.8,32.467]
[1749106049867,0.02,2602.9,2602.8,32.5258]
[1749106051942,0.02,2602.9,2602.8,32.4878]
[1749106053166,0.02,2602.9,2602.8,24.3448]
[1749106053357,0.02,2602.9,2602.8,32.4858]
[1749106053558,0.02,2602.9,2602.8,26.004]
[1749106053866,0.02,2602.9,2602.8,32.427]
[1749106054060,0.02,2602.9,2602.8,32.426]
[1749106054375,0.02,2602.9,2602.8,32.429]
[1749106054674,0.02,2602.9,2602.8,16.428]
[1749106054828,0.02,2602.9,2602.8,8.286]
[1749106055030,1.5186,2602.9,2602.8,16.427]
[1749106055269,2.37194173,2602.9,2602.8,16.427]
[1749106055776,2.37194173,2602.9,2602.8,16.426]
[1749106056166,2.37194173,2602.9,2602.8,10.002]
[1749106056471,9.386759,2602.9,2602.8,10.002]
[1749106057280,9.386759,2602.9,2602.8,16.421]
[1749106057582,9.386759,2602.9,2602.8,10.002]
[1749106057877,9.386759,2602.9,2602.8,16.419]
[1749106058263,9.386759,2602.9,2602.8,8.284]
[1749106058684,9.386759,2602.9,2602.8,10.002]
[1749106060440,9.936759,2602.9,2602.8,10.002]
[1749106060968,9.936759,2602.9,2602.6,6.412]
[1749106060969,1.4159,2602.7,2601.3,0.44078388]
[1749106061175,7.01481727,2602.2,2601.4,6.415]
[1749106061478,7.01481727,2602.2,2601.5,6.414]
[1749106062036,7.01481727,2602.2,2601.6,6.414]
[1749106062993,7.01481727,2602.2,2601.7,6.411]
[1749106064780,1.4159,2602.7,2601.8,16.0]
[1749106064944,1.4159,2602.7,2601.7,6.411]
[1749106064945,8.43071727,2602.7,2601.7,6.411]
[1749106065252,9.275789,2602.7,2601.8,10.003]
[1749106065841,7.01481727,2602.4,2601.8,10.003]
[1749106066875,7.01481727,2602.4,2601.8,26.003]
[1749106069422,7.01481727,2602.4,2601.9,6.408]
[1749106069785,1.3619,2602.3,2601.9,6.408]
[1749106069979,1.3619,2602.3,2602.0,8.126]
[1749106070810,7.01481727,2602.4,2602.0,8.126]
[1749106071106,1.4732,2602.5,2601.8,24.285]
[1749106071305,3.37452636,2602.2,2601.9,8.126]
[1749106073069,3.37452636,2602.2,2602.0,16.0]
[1749106073418,1.4732,2602.5,2602.0,16.0]
[1749106073571,3.37452636,2602.3,2602.0,16.0]
[1749106074479,3.37452636,2602.4,2602.0,16.0]
[1749106076125,3.37452636,2602.2,2601.8,8.285]
[1749106076325,3.37452636,2602.2,2601.9,24.126]
[1749106078434,3.37452636,2602.2,2601.9,16.0]
[1749106078598,3.37452636,2602.0,2601.9,16.0]
[1749106078789,3.37452636,2602.0,2601.9,24.126]
[1749106079126,3.37452636,2602.0,2601.9,16.0]
[1749106079426,3.37452636,2602.0,2601.9,24.126]
[1749106079647,3.37452636,2602.0,2601.9,24.117]
[1749106080504,6.74905272,2602.0,2601.9,9.995]
[1749106080818,4.04943163,2602.0,2601.9,16.403]
[1749106081023,5.50823163,2602.0,2601.9,16.403]
[1749106081202,5.50823163,2602.0,2601.9,9.995]
[1749106081536,5.50823163,2602.0,2601.9,8.286]
[1749106081743,8.88275799,2602.0,2601.9,9.995]
[1749106082339,5.50823163,2602.0,2601.9,9.995]
[1749106082539,4.74742636,2602.2,2601.9,9.995]
[1749106083038,3.37452636,2602.2,2601.9,9.995]
[1749106083199,3.37452636,2602.2,2602.0,16.0]
[1749106083430,3.37452636,2602.4,2602.0,16.0]
[1749106083629,3.37452636,2602.2,2602.0,16.0]
[1749106085336,8.39011954,2602.6,2602.0,16.0448]
[1749106087637,7.01721954,2602.3,2602.0,16.0]
[1749106088332,7.01721954,2602.3,2601.9,9.995]
[1749106088333,1.45,2602.2,2601.9,8.286]
[1749106088538,0.55,2602.8,2601.9,8.286]
[1749106088539,8.46721954,2602.0,2601.9,8.286]
[1749106088841,8.46721954,2602.0,2601.9,9.995]
[1749106088842,0.84672195,2602.0,2601.9,9.995]
[1749106089052,7.01721954,2602.2,2601.9,9.995]
[1749106089950,1.3823,2602.3,2601.9,9.995]
[1749106090280,7.01721954,2602.1,2601.9,9.995]
[1749106090632,7.01721954,2602.3,2601.9,9.995]
[1749106090863,7.01721954,2602.3,2602.0,8.117]
[1749106091090,1.441,2602.5,2602.0,8.117]
[1749106091271,7.01721954,2602.3,2602.0,8.117]
[1749106092071,7.01721954,2602.3,2602.0,24.117]
[1749106093688,1.498,2602.2,2602.1,1.709]
[1749106093892,2.34952195,2602.2,2602.1,1.709]
[1749106095381,1.498,2602.2,2602.1,1.709]
[1749106096956,1.498,2602.2,2602.1,17.709]
[1749106097385,7.01721954,2602.3,2602.1,17.709]
[1749106101390,7.01721954,2602.3,2602.2,24.287]
[1749106101951,0.55,2602.0,2600.0,0.0448]
[1749106102189,1.4629,2601.1,2600.2,16.456]
[1749106102410,1.4629,2601.1,2600.3,0.0448]
[1749106102790,1.4629,2601.1,2600.3,16.0448]
[1749106104183,7.01721954,2601.2,2600.5,16.0]
[1749106105799,7.01721954,2601.2,2600.7,16.0]
[1749106106917,7.01721954,2601.2,2600.3,16.0448]
[1749106107116,7.01721954,2601.2,2600.5,16.0]
[1749106107621,7.01721954,2601.2,2600.5,15.98]
[1749106110733,7.01721954,2601.2,2600.7,16.0]
[1749106111490,7.01721954,2601.2,2600.3,16.0448]
[1749106111691,7.01721954,2601.2,2600.9,16.0]
[1749106113321,3.37718937,2601.0,2600.9,16.0]
[1749106113730,3.37718937,2601.0,2600.9,8.162]
[1749106113943,3.37718937,2601.3,2600.9,8.162]
[1749106114235,3.37718937,2601.1,2600.9,8.162]
[1749106114730,1.4572,2601.6,2600.9,8.162]
[1749106114936,3.37718937,2601.5,2600.9,8.162]
[1749106115793,3.37718937,2601.4,2600.9,8.162]
[1749106116111,3.37718937,2601.7,2601.0,1.728]
[1749106116432,3.37718937,2601.7,2601.1,1.728]
[1749106116603,3.37718937,2601.9,2601.1,1.728]
[1749106117209,8.46462275,2602.0,2601.2,6.432]
[1749106118011,7.01972275,2602.0,2601.3,16.0]
[1749106118724,1.4078,2602.2,2600.9,0.55]
[1749106118928,7.01972275,2602.0,2601.3,16.0]
[1749106119436,7.01972275,2602.0,2601.5,16.0]
[1749106119738,7.01972275,2602.0,2601.7,16.0]
[1749106121712,0.02,2602.9,2601.7,16.0]
[1749106121713,7.01972275,2602.3,2601.7,16.0]
[1749106122826,8.53182275,2602.4,2601.7,16.0]
[1749106124153,7.01972275,2602.4,2601.7,16.0]